Cogmind - Beta 14 @@@ ROGUE MODE // 2024.12.02 @ 02:41:51 Player: akira Result: Destroyed by NC-8ZV(R) with Subdweller Machine Gun Performance ------------- Evolutions (0) 0 Regions Visited (2) 400 Robots Destroyed (28) 140 Value Destroyed (550) 550 Prototype IDs (0) 0 Alien Tech Used (0) 0 Bonus (0) 0 TOTAL SCORE: 1090 Bonus ------- None Cogmind --------- Core Integrity 0/250 Matter 300/300 Energy 125/125 System Corruption 0% Temperature Cool (0) Movement Treading (160) Location -10/Subcaves Parts ------- > --- POWER (1) -------- Light Ion Engine > --- PROPULSION (2) --- Light Treads > --- UTILITY (2) ------ Medium Storage Unit Visual Processing Unit > --- WEAPON (2) ------- Light Assault Rifle Hammer > --- INVENTORY (10) --- Light Treads Compact Wheel Improved Terrain Scanner Transport Network Coupler Core Shielding Core Shielding Core Shielding Hacking Suite Assault Rifle Datajack Peak State ------------ > --- POWER ------------ Light Ion Engine > --- PROPULSION ------- Light Treads Light Treads > --- UTILITY ---------- Medium Storage Unit Improved Terrain Scanner > --- WEAPON ----------- Light Assault Rifle Hammer > --- INVENTORY -------- Light Treads Wheel Compact Wheel Medium Storage Unit Transport Network Coupler Core Shielding Core Shielding Core Shielding Assault Rifle Light Assault Rifle [Rating: 10] Favorites ----------- Power Light Ion Engine Engine Light Ion Engine Propulsion Light Treads Treads Light Treads Leg Aluminum Leg Utility Improved Terrain Scanner Device Improved Terrain Scanner Storage Medium Storage Unit Processor Visual Processing Unit Weapon Assault Rifle Energy Gun EM Pulse Gun Ballistic Gun Assault Rifle Impact Weapon Hammer Special Melee Weapon Datajack Build | -11 -10 -10 ------- Run | Yrd Mat Sub Slots Evolved . | . . . Power . | . . . Propulsion . | . . . Utility . | . . . Weapon . | . . . Parts Attached 34 | 7 24 3 Power 4 | 1 3 . Engine 4 | 1 3 . Core . | . . . Reactor . | . . . Propulsion 9 | 2 7 . Treads 5 | . 5 . Leg 4 | 2 2 . Wheel . | . . . Hover . | . . . Flight . | . . . Utility 5 | 2 2 1 Device 1 | 1 . . Storage 3 | 1 2 . Processor 1 | . . 1 Hackware . | . . . Protection . | . . . Artifact . | . . . Weapon 16 | 2 12 2 Energy Gun 2 | 1 1 . Energy Cannon . | . . . Ballistic Gun 11 | 1 9 1 Ballistic Cannon . | . . . Launcher . | . . . Special Weapon . | . . . Impact Weapon 2 | . 1 1 Slashing Weapon . | . . . Piercing Weapon . | . . . Special Melee Weapon 1 | . 1 . Unidentified Prototypes . | . . . Parts Lost 5 | . 4 1 Power 1 | . 1 . Propulsion 3 | . 2 1 Utility . | . . . Weapon 1 | . 1 . Highest Loss Streak 3 | . 3 1 To Critical Strikes . | . . . Average Slot Usage (%) 95 | . 96 88 Engine 12 | . 12 14 Treads 15 | . 15 17 Leg 10 | . 11 . Device 12 | . 14 . Storage 14 | . 14 14 Processor 1 | . . 14 Energy Gun 3 | . 4 . Ballistic Gun 19 | . 19 14 Impact Weapon 3 | . 2 12 Peak Build Rating 10 | 9 10 9 Average Rating 9 | 5 9 8 On Entrance 6 | . 9 10 Naked Turns . | . . . Heaviest Build 20 | 15 20 16 Greatest Support 40 | 20 40 40 Greatest Overweight (x) 4 | . 4 . Average Overweight (x) . | . . . Largest Inventory Capacity 10 | 8 10 10 Average Capacity 9 | 7 9 10 Most Carried 10 | 8 10 10 Average Carried 8 | 5 9 10 Final Capacity 10 | 8 10 10 Final Carried 10 | 7 10 10 Class Distribution -------------------- 100% | Mutant Dominant Class ---------------- Mutant | -10/Materials Mutant | -10/Subcaves Resources | -11 -10 -10 ----------- Run | Yrd Mat Sub Matter Collected 769 | 250 454 65 Remotely . | . . . Salvage Created 785 | 24 662 99 Parts 69 | 5 61 3 Haulers Intercepted . | . . . Recyclers Shooed 2 | . 2 . Parts Field Recycled . | . . . Retrieved Matter . | . . . Parts Self-Destructed . | . . . Prevented . | . . . Kills | -11 -10 -10 ------- Run | Yrd Mat Sub Combat Hostiles Destroyed 20 | . 18 2 Melee 1 | . . 1 Guns 16 | . 16 . AOE 1 | . 1 . Classes Destroyed 9 | 1 7 1 Worker 1 | . 1 . Builder 3 | . 3 . Tunneler 1 | 1 . . Recycler 1 | . 1 . Operator 1 | . 1 . Watcher 1 | . 1 . Swarmer 9 | . 9 . Grunt 9 | . 9 . Subdweller 2 | . . 2 Best Kill Streak 5 | 1 5 2 Combat Bots Only 4 | . 4 2 Max Kills in Single Turn 2 | 1 2 1 Gunslinging 1 | . 1 . Exploded 1 | . 1 . Melee 1 | . . 1 Uniques/NPCs Destroyed . | . . . Combat | -11 -10 -10 -------- Run | Yrd Mat Sub Hostile Shots Fired 112 | . 84 28 Missed 32 | . 22 10 Damage Taken 1002 | . 618 384 Core 264 | . 136 128 Absorbed by Shields . | . . . Core Remaining (%) 100 | 100 . . Volleys Fired 82 | 4 78 . Largest 2 | 2 2 . Hottest 60 | 60 60 . Shots Fired 141 | 8 133 . Gun 141 | 8 133 . Cannon . | . . . Launcher . | . . . Special . | . . . Kinetic 97 | 4 93 . Thermal . | . . . Explosive . | . . . Electromagnetic 44 | 4 40 . Robot Hit Streak 12 | 5 12 . Robot Miss Streak 5 | 1 5 . Penetration Max . | . . . Secondary Targets 1 | . 1 . Max Gunslinging Chain 1 | . 1 . Shots Hit Robots 99 | 6 85 8 Core Hits 40 | 1 38 1 Critical Kills . | . . . Critical Parts Destroyed 2 | . 2 . Critical Strikes 3 | . 2 1 Destroy 1 | . 1 . Smash 2 | . 1 1 Melee Attacks 19 | . 3 16 Impact 19 | . 3 16 Slashing . | . . . Piercing . | . . . Sneak Attacks . | . . . Combat Hostiles . | . . . Follow-up Attacks . | . . . Damage Inflicted 1653 | 71 1384 198 Guns 1091 | 71 1020 . Cannons . | . . . Explosions 282 | . 282 . Melee 276 | . 78 198 Ramming 4 | . 4 . Kinetic 775 | 47 728 . Thermal 282 | . 282 . Explosive . | . . . Electromagnetic 316 | 24 292 . Impact 276 | . 78 198 Slashing . | . . . Piercing . | . . . Highest Corruption . | . . . Average Corruption . | . . . Corruption Purged . | . . . Corruption Blocked . | . . . Overload Shots . | . . . Overflow Damage 50 | . 44 6 Projectiles . | . . . Explosions 20 | . 20 . Melee 30 | . 24 6 Knockbacks 2 | . 2 . Impact 2 | . 2 . Kinetic . | . . . Secondary . | . . . Self-Inflicted Damage 22 | . 22 . Shots 1 | . 1 . Rammed . | . . . Targets Rammed 1 | . 1 . Kicked 1 | . 1 . Crushed . | . . . Highest Temperature 85 | . 85 . Average Temperature 34 | . 34 . Received Heat Transfer 279 | . 195 84 Siege Activations . | . . . Robots Corrupted 2 | . 1 1 Combat Hostiles 2 | . 1 1 Parts Fried 2 | . 1 1 Impact Corruptions 2 | . 1 1 Robots Melted . | . . . Combat Hostiles . | . . . Parts Melted . | . . . Heat Transferred 450 | . 450 . Parts Sabotaged . | . . . Parts Stolen . | . . . Parts Stripped . | . . . Power Chain Reactions 3 | . 3 . Alert | -11 -10 -10 ------- Run | Yrd Mat Sub Peak Influence 226 | 5 226 . Initial 3 | . 3 . Average 66 | 2 69 . Maximum Alert Level 1 | . 1 . Low Security (%) 95 | 100 95 . Level 1 4 | . 4 . Level 2 . | . . . Level 3 . | . . . Level 4 . | . . . Level 5 . | . . . High Security . | . . . Max Security . | . . . Squads Dispatched 2 | . 2 . Investigation 1 | . 1 . Extermination . | . . . Reinforcement 1 | . 1 . Assault . | . . . Garrison . | . . . Intercept . | . . . Searches Triggered . | . . . Construction Impeded . | . . . Haulers Reinforced . | . . . Active Scanning Responses . | . . . Cargo Convoy Interrupts . | . . . Stealth | -11 -10 -10 --------- Run | Yrd Mat Sub Distress Signals 2 | . 2 . Communications Jammed . | . . . Distress Signals . | . . . Times Spotted 39 | . 36 3 Peak Tracking Total 6 | . 6 2 Tactical Retreats . | . . . Traps | -11 -10 -10 ------- Run | Yrd Mat Sub Traps Triggered 6 | . 6 . Indirectly . | . . . Trap Hack Attempts 6 | . 6 . Triggered . | . . . Disarmed . | . . . Reprogrammed 1 | . 1 . Reused . | . . . Traps Extracted . | . . . Installed . | . . . Triggered . | . . . Machines | -11 -10 -10 ---------- Run | Yrd Mat Sub Machines Disabled . | . . . Max in Single Turn . | . . . Machines Repaired . | . . . Machines Dismantled . | . . . Machines Sabotaged . | . . . Overloaded Fab Kills . | . . . Hacking | -11 -10 -10 --------- Run | Yrd Mat Sub Machines Accessed 5 | . 5 . Terminals 5 | . 5 . Fabricators . | . . . Repair Stations . | . . . Recycling Units . | . . . Scanalyzers . | . . . Garrison Access . | . . . Total Hacks 9 | . 9 . Successful 9 | . 9 . Failed . | . . . Catastrophic . | . . . Database Lockouts . | . . . Manual 2 | . 2 . Terminals 9 | . 9 . Fabricators . | . . . Repair Stations . | . . . Recycling Units . | . . . Scanalyzers . | . . . Garrison Access . | . . . Terminal Hacks 7 | . 7 . Branch Access Points 1 | . 1 . Emergency Access Points 1 | . 1 . Alert Level 1 | . 1 . Unreport Threat 2 | . 2 . Hauler Manifests 2 | . 2 . Fabricator Hacks . | . . . Repair Station Hacks . | . . . Recycling Unit Hacks . | . . . Scanalyzer . | . . . Garrison Access Hacks . | . . . Unauthorized Hacks 2 | . 2 . Terminals 2 | . 2 . Botnet 2 | . 2 . Fabricators . | . . . Repair Stations . | . . . Recycling Units . | . . . Scanalyzers . | . . . Garrison Access . | . . . Data Cores Recovered . | . . . Used . | . . . Hacking Detections 2 | . 2 . Full Trace Events . | . . . Feedback Events . | . . . Feedback Blocked . | . . . Robot Schematics Acquired . | . . . Robots Built . | . . . Authchips . | . . . Time . | . . . Total Robot Build Rating . | . . . Part Schematics Acquired . | . . . Parts Built . | . . . Authchips . | . . . Time . | . . . Total Part Build Rating . | . . . Parts Repaired . | . . . Time . | . . . Parts Recycled . | . . . Recycled Matter . | . . . Retrieved Matter . | . . . Retrieved Components . | . . . Parts Scanalyzed . | . . . Part Schematics Acquired . | . . . Parts Damaged . | . . . Bothacking | -11 -10 -10 ------------ Run | Yrd Mat Sub Used RIF Installer . | . . . Robots Hacked . | . . . Non-combat . | . . . Combat . | . . . Robot Hacks Applied . | . . . Relay Couplers Released . | . . . Fabnet Peak Effective % . | . . . Robots Rewired . | . . . Allies Hacked . | . . . Hacks Repelled . | . . . Allies | -11 -10 -10 -------- Run | Yrd Mat Sub Total Allies . | . . . Largest Group . | . . . Highest-Rated Group . | . . . Highest-Rated Ally . | . . . Total Orders . | . . . Ally Attacks . | . . . Total Damage . | . . . Kills . | . . . Allies Corrupted . | . . . Allies Melted . | . . . Intel | -11 -10 -10 ------- Run | Yrd Mat Sub Robot Analysis Total . | . . . Derelict Logs Recovered . | . . . Drone Launches . | . . . Drone Recoveries . | . . . Exploration | -11 -10 -10 ------------- Run | Yrd Mat Sub Turns Passed 2222 | 94 1970 158 Spaces Moved 1143 | 55 1019 69 Core 5 | 4 1 . Treads 675 | . 606 69 Legs 463 | 51 412 . Wheels . | . . . Hover . | . . . Flight . | . . . Fastest Speed 50 | 50 120 160 Average Speed 144 | 114 144 160 Slowest Speed 250 | 120 250 160 Overloaded Moves . | . . . Propulsion Burnouts . | . . . Robots Hopped . | . . . Cave-ins Triggered . | . . . Exploration Rate (%) 36 | 3 98 9 Regions Visited 2 Branch Regions 1 Pre-discovered Areas . | . . . Known Exits Taken . | . . . Unknown Exits Taken 2 | 1 1 . Scrap Searched . | . . . Spaces Dug . | . . . Terrain Destroyed 15 | . 15 . Melee . | . . . Projectile . | . . . AOE 15 | . 15 . Terrain Rammed . | . . . Walls Destroyed . | . . . Machines Disabled . | . . . Actions | -11 -10 -10 --------- Run | Yrd Mat Sub Total 1537 | 76 1373 88 Wait 227 | . 227 . Move 1141 | 54 1018 69 Hop . | . . . Pick Up 22 | 11 11 . Fast Attach 15 | 3 12 . Attach 9 | 4 5 . Detach . | . . . Swap 10 | . 7 3 Drop 5 | . 5 . Fire 82 | 4 78 . Melee 19 | . 3 16 Ram . | . . . Kick 1 | . 1 . Crush . | . . . Escape Stasis . | . . . Rewire . | . . . Trap 6 | . 6 . Miscellaneous . | . . . Route ------- -11/Scrapyard -10/Materials (discovered 5 exits: [*Mat x3] / *Min / [*Sub]) -10/Subcaves History --------- Turn | Location | Event 2 | -11/Scrapyard | Discovered new exit (range 16) 95 | -11/Scrapyard | Entered Materials 127 | -10/Materials | Identified exit to Mines 306 | -10/Materials | Build established: Mutant 426 | -10/Materials | Discovered new exit (range 9) 973 | -10/Materials | Lost 3 parts (1p2n) 1032 | -10/Materials | Discovered new exit (range 8) 1125 | -10/Materials | Core integrity fell below 50% 1518 | -10/Materials | Discovered new exit (range 16) 1656 | -10/Materials | Discovered new exit (range 14) 2065 | -10/Materials | Entered Subcaves 2218 | -10/Subcaves | Core integrity fell below 20% 2223 | -10/Subcaves | Destroyed by NC-8ZV(R) with Subdweller Machine Gun Last Messages --------------- 01974_ Acquired 15 matter. 01977_ R-06 Scavenger collects Lgt. Ion Engine. 01997_ K-01 Serf collects debris. 02025_ Attempting to reprogram Explosive Trap. 02030_ Explosive Trap reprogrammed. LOCATION=UNKNOWN AMBIENT_HEAT=-10 GOAL=ESCAPE 02075_ QS-KKM(R) suffers critical hit (Destroy). 02099_ OU-PQM(R) suffers critical hit (Smash). 02102_ Lgt. Treads destroyed. 02102_ Destroyed Sub. Power Source. 02102_ OU-PQM(R) system corrupted by crushing effect. 02103_ OU-PQM(R) system terminally corrupted. 02103_ Sub. Optics fried. 02107_ QS-KKM(R) affixes Scrap Shield Fragment to Scrap Shield. 02114_ QS-KKM(R) destroyed. 02116_ Acquired 56 matter. 02118_ Acquired 9 matter. Map ----- +----------------------------------------------------+ | ????????????????????????????????????????????????? | | ????????????????????????????????????????????????? | | ????????????????????????????????????????????????? | | ????????????????????????????????????????????????? | | ????????????????????????????????????????????????? | | ????????????????????????????????????????????????? | | ????????????????????????????????????????????????? | | ????????????????????????????????????????????????? | | ????????????????????????????????????????????????? | | ?????????????????????????? ?????????????????????? | | ?????????????????????????? ????????????????????? | | ?????????????????????#???? "????????????????????? | | ?????????????????????# ??? ????????????????????? | | ?????????????????????# ?? ????????????????????? | | ?????????????????????# ?? ????????????????????? | | ?????????????????????# "?? ??????????????????? | | ?????????????????????# "## """??????????????????? | | ?????????????????????# " ""#??????????????????? | | ?????????????????????# ""#??????????????????? | | ?????????????????????# #??????????????????? | | ?????????????????????# #??????????????????? | | ?????????????????????# #??????????????????? | | ?????????????????????# #??????????????????? | | ?????????????????????# #???????????????????? | | ?????????????????????## ####?????????????????? | | ?????????????????????# "R@## ###???????????????? | | ?????????????????????# "" " #???????????????? | | ?????????????????????### "# ## ##???????????????? | | ??????????????????????### ### #????????????????? | | ?????????????????????## " ?# #????????????????? | | ?????????????????????# " ### ##???????????????? | | ?????????????????????# # " ""# #???????????????? | | ?????????????????????? # "" ##??????????????? | | ?????????????????????# " "# "##?????????????? | | ??????????????????#### # ## """ #?????????????? | | ??????????????????# """ # "" #?????????????? | | ???????????? R "####?????????????? | | ???????????? ### "#????????????????? | | ???????????? #??? #???# "##???????????????? | | ??????????????????????? ????# " ##??????????????? | | ???????????????????????????## "" #??????????????? | | ???????????????????????????# "##??????????????? | | ???????????????????????????# "#???????????????? | | ???????????????????????????# ##???????????????? | | ???????????????????????????## ##????????????????? | | ???????????????????????????# ##????????????????? | | ??????????????????????????## ##???????????????? | | ??????????????????????????# #???????????????? | | ??????????????????????????# #???????????????? | | ??????????????????????????# #???????????????? | +----------------------------------------------------+ Best States ------------- Heat Dissipation 25 Energy Generation 10 Energy Capacity 250 Matter Stores 300 Matter Capacity 300 Sight Range 18 Terrain Scan Range 16 Terrain Scan Density 10 Evasion (%) 55 Recoil Reduction 2 Item Schematics ----------------- None Robot Schematics ------------------ None Fabricated ------------ Nothing Alien Tech Used ----------------- None Achievements -------------- None Challenges ------------ None Game ------ Seed JunkPhasingCompressor Manual? 0 Play Time 00:12:57 Cumulative 86.0 hours Start 2024.12.02 @ 02:29:47 End 2024.12.02 @ 02:41:51 Sessions 1 Manual Loads 0 Difficulty Rogue Special Mode None Game No. 91 Rogue 91 Adventurer 0 Explorer 0 Win Type - Total 0 Types 0/0/0/0/0/0/0/0/0 Lore% 12 Gallery% 37 Achievement% 33 Wizard Run 0 Options --------- Layout 2 ASCII 0 Keyboard 0 Movement Mouse Keybinds 0 Fullscreen 2 Font 16/SmallcapsGlow Map View 55x47 Zoom Use 0% Tactical HUD 1 Map Filters NONE Filters NONE Steam 1 RUN: 2e14bb2a-5d32-45ed-80d9-a6c6c7926ae0